[Event "*** Titled Tuesday Blitz"]
[Site "Chess.com"]
[Date "2021.04.20"]
[Round "7"]
[White "eCztery"]
[Black "sorrm8thatscheckm8"]
[Result "0-1"]
[WhiteElo "2405"]
[BlackElo "2580"]
[TimeControl "180+1"]
[EndTime "11:18:20 PDT"]
[Termination "sorrm8thatscheckm8 won on time"]

1. e4 {[%clk 0:03:00.9]} 1... c5 {[%clk 0:02:54]} 2. Nf3 {[%clk 0:03:01]} 2...
Nc6 {[%clk 0:02:51.9]} 3. Nc3 {[%clk 0:02:56.1]} 3... Nf6 {[%clk 0:02:51.5]} 4.
Bb5 {[%clk 0:02:30.8]} 4... Nd4 {[%clk 0:02:49.4]} 5. Bc4 {[%clk 0:02:19.3]}
5... d6 {[%clk 0:02:46.7]} 6. h3 {[%clk 0:02:16.4]} 6... g6 {[%clk 0:02:43]} 7.
d3 {[%clk 0:02:14]} 7... Bg7 {[%clk 0:02:42.5]} 8. Nxd4 {[%clk 0:02:07.6]} 8...
cxd4 {[%clk 0:02:42.5]} 9. Ne2 {[%clk 0:02:05.9]} 9... Nd7 {[%clk 0:02:42.1]}
10. O-O {[%clk 0:02:04.9]} 10... O-O {[%clk 0:02:42]} 11. c3 {[%clk 0:01:54.2]}
11... dxc3 {[%clk 0:02:36.9]} 12. bxc3 {[%clk 0:01:55.1]} 12... Nb6 {[%clk
0:02:36.9]} 13. Bb3 {[%clk 0:01:50.6]} 13... d5 {[%clk 0:02:37.1]} 14. Bg5
{[%clk 0:01:45.3]} 14... dxe4 {[%clk 0:02:30.2]} 15. dxe4 {[%clk 0:01:46.2]}
15... Qc7 {[%clk 0:02:30.5]} 16. Qc2 {[%clk 0:01:27.1]} 16... Nc4 {[%clk
0:02:19.9]} 17. Bxe7 {[%clk 0:01:17.9]} 17... Ne3 {[%clk 0:02:14.4]} 18. fxe3
{[%clk 0:01:17.2]} 18... Qxe7 {[%clk 0:02:14.1]} 19. Nd4 {[%clk 0:01:13.9]}
19... Be5 {[%clk 0:02:10.7]} 20. Rad1 {[%clk 0:01:08.9]} 20... Qg5 {[%clk
0:01:47.4]} 21. Rf3 {[%clk 0:01:00.4]} 21... Bc7 {[%clk 0:01:27.3]} 22. Rdf1
{[%clk 0:00:52.2]} 22... Qe5 {[%clk 0:01:22.8]} 23. Bxf7+ {[%clk 0:00:50.3]}
23... Kg7 {[%clk 0:01:17.8]} 24. g4 {[%clk 0:00:47.3]} 24... Bd7 {[%clk
0:00:50.6]} 25. Qf2 {[%clk 0:00:42.2]} 25... Qxe4 {[%clk 0:00:47.1]} 26. Qh4
{[%clk 0:00:26.6]} 26... Qe5 {[%clk 0:00:43.1]} 27. R1f2 {[%clk 0:00:19.7]}
27... Bd8 {[%clk 0:00:35.6]} 28. g5 {[%clk 0:00:05.7]} 28... Bxg5 {[%clk
0:00:36.2]} 29. Nf5+ {[%clk 0:00:05.5]} 29... Qxf5 {[%clk 0:00:31.9]} 30. Qd4+
{[%clk 0:00:05.7]} 30... Bf6 {[%clk 0:00:29.1]} 31. Qxf6+ {[%clk 0:00:06.1]}
31... Qxf6 {[%clk 0:00:29.2]} 32. Rxf6 {[%clk 0:00:07]} 32... Bf5 {[%clk
0:00:28.8]} 33. R6xf5 {[%clk 0:00:01.4]} 33... gxf5 {[%clk 0:00:28.6]} 34. Be6
{[%clk 0:00:02.3]} 34... Rf6 {[%clk 0:00:27.6]} 35. Bxf5 {[%clk 0:00:02.3]}
35... Rd8 {[%clk 0:00:26.2]} 36. e4 {[%clk 0:00:03.2]} 36... Rc6 {[%clk
0:00:23]} 37. Kh2 {[%clk 0:00:02.8]} 37... Rxc3 {[%clk 0:00:21.3]} 38. e5 {[%clk
0:00:03.3]} 38... Re3 {[%clk 0:00:19]} 39. Rg2+ {[%clk 0:00:03.8]} 39... Kf7
{[%clk 0:00:18]} 40. e6+ {[%clk 0:00:04.2]} 40... Kf6 {[%clk 0:00:17.6]} 41. Bg4
{[%clk 0:00:04.8]} 41... h5 {[%clk 0:00:16.8]} 42. Rf2+ {[%clk 0:00:05.2]} 42...
Kg6 {[%clk 0:00:13.2]} 43. Bf5+ {[%clk 0:00:04.5]} 43... Kh6 {[%clk 0:00:12.3]}
44. Rg2 {[%clk 0:00:05]} 44... h4 {[%clk 0:00:07.9]} 45. Rg6+ {[%clk 0:00:05.3]}
45... Kh5 {[%clk 0:00:08.5]} 46. Rg2 {[%clk 0:00:03.8]} 46... Rd4 {[%clk
0:00:08.2]} 47. Bg4+ {[%clk 0:00:03.3]} 47... Kh6 {[%clk 0:00:07.9]} 48. Rf2
{[%clk 0:00:03.8]} 48... Rde4 {[%clk 0:00:07.4]} 49. Kg2 {[%clk 0:00:03.8]}
49... Kg6 {[%clk 0:00:07]} 50. Bf5+ {[%clk 0:00:03.1]} 50... Kg5 {[%clk
0:00:07.4]} 51. Bxe4 {[%clk 0:00:03.9]} 51... Rxe4 {[%clk 0:00:08.3]} 52. Rf7
{[%clk 0:00:03]} 52... Rxe6 {[%clk 0:00:08.8]} 53. Rg7+ {[%clk 0:00:03.2]} 53...
Kf4 {[%clk 0:00:08]} 54. Rxb7 {[%clk 0:00:04.1]} 54... Re2+ {[%clk 0:00:07.7]}
55. Kf1 {[%clk 0:00:04.8]} 55... Rxa2 {[%clk 0:00:08.3]} 56. Rg7 {[%clk
0:00:03.5]} 56... Kf3 {[%clk 0:00:07.6]} 57. Rf7+ {[%clk 0:00:03.5]} 57... Kg3
{[%clk 0:00:08.2]} 58. Rg7+ {[%clk 0:00:03.2]} 58... Kxh3 {[%clk 0:00:08.7]} 59.
Kg1 {[%clk 0:00:03.5]} 59... a5 {[%clk 0:00:09]} 60. Rg6 {[%clk 0:00:03.3]}
60... a4 {[%clk 0:00:09.5]} 61. Rg5 {[%clk 0:00:03.6]} 61... a3 {[%clk
0:00:09.9]} 62. Rg8 {[%clk 0:00:04]} 62... Ra1+ {[%clk 0:00:10.2]} 63. Kf2
{[%clk 0:00:04.5]} 63... a2 {[%clk 0:00:11.1]} 64. Ra8 {[%clk 0:00:04]} 64...
Rh1 {[%clk 0:00:10.8]} 65. Kf3 {[%clk 0:00:02.1]} 65... a1=Q {[%clk 0:00:10.4]}
66. Re8 {[%clk 0:00:01.2]} 66... Qf1+ {[%clk 0:00:10.3]} 0-1

[Event "*** Titled Tuesday Blitz"]
[Site "Chess.com"]
[Date "2021.04.20"]
[Round "7"]
[White "HrvojeZagreb"]
[Black "Das_Virus_2020"]
[Result "0-1"]
[WhiteElo "2283"]
[BlackElo "2483"]
[TimeControl "180+1"]
[EndTime "11:18:26 PDT"]
[Termination "Das_Virus_2020 won by resignation"]

1. d4 {[%clk 0:03:00.9]} 1... Nf6 {[%clk 0:02:59]} 2. Bf4 {[%clk 0:03:00.8]}
2... c5 {[%clk 0:02:58.1]} 3. e3 {[%clk 0:03:00.8]} 3... Qb6 {[%clk 0:02:57.7]}
4. Na3 {[%clk 0:03:00.3]} 4... d6 {[%clk 0:02:57.3]} 5. Nc4 {[%clk 0:03:00]}
5... Qc7 {[%clk 0:02:57.3]} 6. a4 {[%clk 0:02:57]} 6... g6 {[%clk 0:02:54.6]} 7.
h4 {[%clk 0:02:50.9]} 7... h5 {[%clk 0:02:47.4]} 8. c3 {[%clk 0:01:32.8]} 8...
Bg7 {[%clk 0:02:43.3]} 9. dxc5 {[%clk 0:01:30.8]} 9... Qxc5 {[%clk 0:02:41.5]}
10. Nxd6+ {[%clk 0:01:27.4]} 10... exd6 {[%clk 0:02:39.7]} 11. Bxd6 {[%clk
0:01:27.7]} 11... Qd5 {[%clk 0:02:16.6]} 12. Qxd5 {[%clk 0:01:16.3]} 12... Nxd5
{[%clk 0:02:17.5]} 13. O-O-O {[%clk 0:01:11.1]} 13... Be6 {[%clk 0:02:02]} 14.
Nf3 {[%clk 0:00:47.4]} 14... Nc6 {[%clk 0:01:51.7]} 15. Ng5 {[%clk 0:00:41.9]}
15... O-O-O {[%clk 0:01:37.1]} 16. Nxe6 {[%clk 0:00:27.2]} 16... fxe6 {[%clk
0:01:27.1]} 17. Bg3 {[%clk 0:00:21.7]} 17... Be5 {[%clk 0:01:25.2]} 18. f4
{[%clk 0:00:17.6]} 18... Nxe3 {[%clk 0:01:04.8]} 19. Rxd8+ {[%clk 0:00:12.1]}
19... Rxd8 {[%clk 0:01:05.7]} 20. Be2 {[%clk 0:00:09.9]} 20... Bc7 {[%clk
0:01:01.8]} 21. Rg1 {[%clk 0:00:07.1]} 21... Nf5 {[%clk 0:01:00.9]} 22. Bh2
{[%clk 0:00:06]} 22... Nxh4 {[%clk 0:00:54.2]} 23. g4 {[%clk 0:00:05.7]} 23...
hxg4 {[%clk 0:00:53.5]} 24. Bxg4 {[%clk 0:00:05.7]} 24... Nf5 {[%clk 0:00:53.1]}
25. Re1 {[%clk 0:00:05.5]} 25... Re8 {[%clk 0:00:50.4]} 26. Bg1 {[%clk
0:00:04.6]} 26... e5 {[%clk 0:00:48.1]} 27. fxe5 {[%clk 0:00:04.3]} 27... Rxe5
{[%clk 0:00:44.4]} 28. Rxe5 {[%clk 0:00:03.9]} 28... Bxe5 {[%clk 0:00:41.7]} 29.
Bh3 {[%clk 0:00:04.8]} 29... Kc7 {[%clk 0:00:40.1]} 30. Kc2 {[%clk 0:00:05.2]}
30... Bf4 {[%clk 0:00:38.3]} 31. b4 {[%clk 0:00:04.7]} 31... a6 {[%clk
0:00:29.8]} 32. b5 {[%clk 0:00:04.1]} 32... axb5 {[%clk 0:00:29.5]} 33. axb5
{[%clk 0:00:05]} 33... Nce7 {[%clk 0:00:28.7]} 34. c4 {[%clk 0:00:05]} 34... b6
{[%clk 0:00:27.1]} 35. Kd3 {[%clk 0:00:05.3]} 35... Bd6 {[%clk 0:00:25.9]} 36.
Ke4 {[%clk 0:00:05.2]} 36... Bc5 {[%clk 0:00:21.2]} 37. Bh2+ {[%clk 0:00:04.8]}
37... Kd7 {[%clk 0:00:21]} 38. Bb8 {[%clk 0:00:04.1]} 38... Ke6 {[%clk 0:00:21]}
39. Ba7 {[%clk 0:00:03.6]} 39... Kf6 {[%clk 0:00:19.5]} 40. Bg4 {[%clk
0:00:03.9]} 40... Nd6+ {[%clk 0:00:18.8]} 41. Kd3 {[%clk 0:00:03.7]} 41... Nec8
{[%clk 0:00:17.9]} 42. Bb8 {[%clk 0:00:02.9]} 42... Ne7 {[%clk 0:00:16]} 43. Bd7
{[%clk 0:00:02.9]} 43... g5 {[%clk 0:00:14.8]} 44. Bc7 {[%clk 0:00:03.2]} 44...
Ng6 {[%clk 0:00:14.2]} 45. Bxd6 {[%clk 0:00:02.4]} 45... Bxd6 {[%clk 0:00:13.4]}
46. Ke4 {[%clk 0:00:03.3]} 46... Bc5 {[%clk 0:00:13.2]} 47. Kd5 {[%clk
0:00:03.3]} 47... Nf4+ {[%clk 0:00:12.4]} 48. Ke4 {[%clk 0:00:03.5]} 48... Ne6
{[%clk 0:00:11.9]} 49. Kd5 {[%clk 0:00:03.1]} 49... Nd4 {[%clk 0:00:11.1]} 50.
Bc8 {[%clk 0:00:02.8]} 50... Nc2 {[%clk 0:00:10.8]} 51. Ke4 {[%clk 0:00:03]}
51... Ne3 {[%clk 0:00:10.5]} 52. Kd3 {[%clk 0:00:03.6]} 52... g4 {[%clk
0:00:09.8]} 53. Bxg4 {[%clk 0:00:03.3]} 53... Nxg4 {[%clk 0:00:09.3]} 54. Ke4
{[%clk 0:00:04.2]} 54... Ke6 {[%clk 0:00:09.3]} 55. Kd3 {[%clk 0:00:04.6]} 55...
Ne5+ {[%clk 0:00:10.1]} 56. Kc3 {[%clk 0:00:04.4]} 56... Kf5 {[%clk 0:00:10.6]}
57. Kb3 {[%clk 0:00:04.4]} 57... Ke4 {[%clk 0:00:11.5]} 58. Ka4 {[%clk
0:00:04.4]} 58... Kd4 {[%clk 0:00:11.3]} 59. Kb3 {[%clk 0:00:04.7]} 59... Nxc4
{[%clk 0:00:12.2]} 60. Ka4 {[%clk 0:00:04.2]} 60... Nd6 {[%clk 0:00:11.7]} 61.
Kb3 {[%clk 0:00:03.9]} 61... Nxb5 {[%clk 0:00:11.8]} 62. Ka4 {[%clk 0:00:04.8]}
62... Nd6 {[%clk 0:00:11.9]} 63. Kb3 {[%clk 0:00:05.7]} 63... b5 {[%clk
0:00:12.2]} 64. Ka2 {[%clk 0:00:05.3]} 64... Kc3 {[%clk 0:00:11.8]} 65. Kb1
{[%clk 0:00:04.4]} 65... b4 {[%clk 0:00:12.2]} 66. Ka2 {[%clk 0:00:04.8]} 66...
b3+ {[%clk 0:00:13.1]} 67. Kb1 {[%clk 0:00:05.2]} 67... Nc4 {[%clk 0:00:12.3]}
68. Ka1 {[%clk 0:00:04.5]} 68... Nb6 {[%clk 0:00:09.8]} 69. Kb1 {[%clk
0:00:04.5]} 69... Kb4 {[%clk 0:00:09.7]} 70. Kb2 {[%clk 0:00:04.5]} 70... Bd4+
{[%clk 0:00:09.7]} 71. Kb1 {[%clk 0:00:04.8]} 71... Ka3 {[%clk 0:00:09]} 72. Kc1
{[%clk 0:00:04.7]} 72... Nc4 {[%clk 0:00:09.2]} 73. Kb1 {[%clk 0:00:04.4]} 73...
Nd2+ {[%clk 0:00:08.2]} 74. Kc1 {[%clk 0:00:04.8]} 74... b2+ {[%clk 0:00:08.5]}
75. Kxd2 {[%clk 0:00:05]} 75... b1=Q {[%clk 0:00:08.8]} 76. Ke2 {[%clk
0:00:05.5]} 76... Qc2+ {[%clk 0:00:08.6]} 77. Kf1 {[%clk 0:00:05.5]} 0-1

[Event "*** Titled Tuesday Blitz"]
[Site "Chess.com"]
[Date "2021.04.20"]
[Round "7"]
[White "MPGM"]
[Black "c_r_e_e_p_e_r"]
[Result "0-1"]
[WhiteElo "2504"]
[BlackElo "2376"]
[TimeControl "180+1"]
[EndTime "11:18:33 PDT"]
[Termination "c_r_e_e_p_e_r won by resignation"]

1. c4 {[%clk 0:03:00.9]} 1... Nf6 {[%clk 0:02:59.8]} 2. Nc3 {[%clk 0:03:00.6]}
2... e6 {[%clk 0:03:00.3]} 3. e4 {[%clk 0:02:55.2]} 3... d5 {[%clk 0:03:00.8]}
4. e5 {[%clk 0:02:54.1]} 4... Ne4 {[%clk 0:03:00.7]} 5. Qg4 {[%clk 0:02:40]}
5... Na6 {[%clk 0:02:54.5]} 6. Nxe4 {[%clk 0:02:33.2]} 6... dxe4 {[%clk
0:02:54.8]} 7. Qxe4 {[%clk 0:02:33.6]} 7... Bd7 {[%clk 0:02:55.4]} 8. a3 {[%clk
0:01:45.1]} 8... Nc5 {[%clk 0:02:54.6]} 9. Qc2 {[%clk 0:01:44.1]} 9... Ba4
{[%clk 0:02:54.8]} 10. Qc3 {[%clk 0:01:42.9]} 10... Nb3 {[%clk 0:02:49.8]} 11.
Rb1 {[%clk 0:01:40.2]} 11... Bc5 {[%clk 0:02:41.4]} 12. Nf3 {[%clk 0:01:37.4]}
12... Nd4 {[%clk 0:02:26.8]} 13. b3 {[%clk 0:01:28.6]} 13... Bc6 {[%clk
0:02:26.6]} 14. Nxd4 {[%clk 0:01:22.6]} 14... Bxd4 {[%clk 0:02:27.5]} 15. Qg3
{[%clk 0:01:22.4]} 15... O-O {[%clk 0:02:18.1]} 16. Bb2 {[%clk 0:01:19]} 16...
Be4 {[%clk 0:02:16.5]} 17. d3 {[%clk 0:01:16.7]} 17... Bxb2 {[%clk 0:02:11.4]}
18. Rxb2 {[%clk 0:01:17.6]} 18... Qd4 {[%clk 0:02:11]} 19. Rc2 {[%clk
0:01:03.9]} 19... Qa1+ {[%clk 0:02:10.8]} 20. Kd2 {[%clk 0:00:54.1]} 20... Rad8
{[%clk 0:02:01]} 21. h4 {[%clk 0:00:48.1]} 21... Bxd3 {[%clk 0:01:52.9]} 22.
Bxd3 {[%clk 0:00:46.2]} 22... Qxh1 {[%clk 0:01:47.6]} 23. Rc1 {[%clk 0:00:43.6]}
23... Rxd3+ {[%clk 0:01:48]} 24. Qxd3 {[%clk 0:00:42.2]} 24... Qxg2 {[%clk
0:01:48.2]} 25. Qe3 {[%clk 0:00:31.9]} 25... Qg6 {[%clk 0:01:29.1]} 26. Kc3
{[%clk 0:00:26.7]} 26... Rd8 {[%clk 0:01:26.1]} 27. Rc2 {[%clk 0:00:16.2]} 27...
h6 {[%clk 0:01:03.8]} 28. Rd2 {[%clk 0:00:15.9]} 28... Rxd2 {[%clk 0:01:03.7]}
29. Qxd2 {[%clk 0:00:16.8]} 29... Qe4 {[%clk 0:00:58]} 30. Qd8+ {[%clk 0:00:14]}
30... Kh7 {[%clk 0:00:58.4]} 31. Qxc7 {[%clk 0:00:14.1]} 31... Qe1+ {[%clk
0:00:51.5]} 32. Kd3 {[%clk 0:00:12.6]} 32... Qd1+ {[%clk 0:00:40.1]} 33. Kc3
{[%clk 0:00:12.1]} 33... Qe1+ {[%clk 0:00:39.5]} 34. Kd3 {[%clk 0:00:12.2]}
34... Qf1+ {[%clk 0:00:40.1]} 35. Ke3 {[%clk 0:00:07.4]} 35... Qc1+ {[%clk
0:00:35.7]} 36. Kf3 {[%clk 0:00:05]} 36... Qh1+ {[%clk 0:00:30.3]} 37. Ke2
{[%clk 0:00:04.8]} 37... Qe4+ {[%clk 0:00:26.7]} 38. Kd2 {[%clk 0:00:05.2]}
38... Qd4+ {[%clk 0:00:25.2]} 39. Ke2 {[%clk 0:00:05.5]} 39... Qb2+ {[%clk
0:00:24.1]} 40. Kf1 {[%clk 0:00:04.9]} 40... Qxb3 {[%clk 0:00:19.5]} 41. Qxf7
{[%clk 0:00:03.9]} 41... Qxc4+ {[%clk 0:00:20.1]} 42. Ke1 {[%clk 0:00:01.3]}
42... Qe4+ {[%clk 0:00:19]} 43. Kf1 {[%clk 0:00:02]} 43... Qh1+ {[%clk
0:00:18.2]} 44. Ke2 {[%clk 0:00:02.1]} 44... Qe4+ {[%clk 0:00:16.9]} 45. Kf1
{[%clk 0:00:02.5]} 45... Qxe5 {[%clk 0:00:14.2]} 46. Qxb7 {[%clk 0:00:03.1]}
46... Qd4 {[%clk 0:00:11.6]} 47. Qb3 {[%clk 0:00:01.1]} 47... Qxh4 {[%clk
0:00:10.7]} 48. Qc2+ {[%clk 0:00:01.4]} 48... Kg8 {[%clk 0:00:09.6]} 49. Qc8+
{[%clk 0:00:02]} 49... Kf7 {[%clk 0:00:10]} 50. Qd7+ {[%clk 0:00:01.8]} 50...
Qe7 {[%clk 0:00:10.3]} 51. Qd3 {[%clk 0:00:02.5]} 51... e5 {[%clk 0:00:08.8]}
52. Qf3+ {[%clk 0:00:02.8]} 52... Kg8 {[%clk 0:00:07.8]} 53. Qd5+ {[%clk
0:00:03.3]} 53... Kh7 {[%clk 0:00:06.1]} 54. Qe4+ {[%clk 0:00:03.4]} 54... g6
{[%clk 0:00:06.6]} 55. Qd3 {[%clk 0:00:03.5]} 55... Kg7 {[%clk 0:00:07.2]} 56.
Qe3 {[%clk 0:00:03.6]} 56... e4 {[%clk 0:00:07.7]} 57. Qd4+ {[%clk 0:00:03.8]}
57... Kf7 {[%clk 0:00:08.2]} 58. Qd5+ {[%clk 0:00:04.2]} 58... Qe6 {[%clk
0:00:07.9]} 59. Qb7+ {[%clk 0:00:04.3]} 59... Qe7 {[%clk 0:00:07.7]} 60. Qd5+
{[%clk 0:00:04.3]} 60... Kg7 {[%clk 0:00:08.4]} 61. Qd4+ {[%clk 0:00:04.6]}
61... Kh7 {[%clk 0:00:09.1]} 62. Qe3 {[%clk 0:00:03.9]} 62... g5 {[%clk
0:00:09]} 63. Qc3 {[%clk 0:00:03.8]} 63... Kg6 {[%clk 0:00:09.3]} 64. Qe3 {[%clk
0:00:03.7]} 64... Kf5 {[%clk 0:00:09.7]} 65. Qh3+ {[%clk 0:00:03.7]} 65... Kg6
{[%clk 0:00:09.4]} 66. Qe3 {[%clk 0:00:04.1]} 66... Qe5 {[%clk 0:00:07.2]} 67.
Qxa7 {[%clk 0:00:04.1]} 67... h5 {[%clk 0:00:07.2]} 68. Qb6+ {[%clk 0:00:04.3]}
68... Kf5 {[%clk 0:00:07.4]} 69. Qc6 {[%clk 0:00:03.9]} 69... h4 {[%clk
0:00:07.7]} 70. Qd7+ {[%clk 0:00:03.9]} 70... Kf4 {[%clk 0:00:08.2]} 71. Qf7+
{[%clk 0:00:03.8]} 71... Qf5 {[%clk 0:00:08.3]} 72. Qc7+ {[%clk 0:00:01.9]}
72... Kg4 {[%clk 0:00:07.4]} 73. Qc3 {[%clk 0:00:02.1]} 73... Qf3 {[%clk
0:00:04.9]} 74. Qxf3+ {[%clk 0:00:01.7]} 74... Kxf3 {[%clk 0:00:04.5]} 75. a4
{[%clk 0:00:02.6]} 75... h3 {[%clk 0:00:03.7]} 76. Kg1 {[%clk 0:00:02.4]} 76...
g4 {[%clk 0:00:03.2]} 77. a5 {[%clk 0:00:02.5]} 77... g3 {[%clk 0:00:03.4]} 78.
fxg3 {[%clk 0:00:01.5]} 78... e3 {[%clk 0:00:03.8]} 79. a6 {[%clk 0:00:01.3]}
79... e2 {[%clk 0:00:04.1]} 80. a7 {[%clk 0:00:01.7]} 80... e1=Q+ {[%clk
0:00:04.6]} 81. Kh2 {[%clk 0:00:02.6]} 81... Qf2+ {[%clk 0:00:04.3]} 0-1

[Event "*** Titled Tuesday Blitz"]
[Site "Chess.com"]
[Date "2021.04.20"]
[Round "7"]
[White "Sibelephant"]
[Black "amintabatabaei"]
[Result "0-1"]
[WhiteElo "3088"]
[BlackElo "3008"]
[TimeControl "180+1"]
[EndTime "11:18:42 PDT"]
[Termination "amintabatabaei won by resignation"]

1. Nf3 {[%clk 0:03:00.1]} 1... d5 {[%clk 0:02:57.9]} 2. g3 {[%clk 0:03:00.1]}
2... g6 {[%clk 0:02:57.1]} 3. Bg2 {[%clk 0:03:00.3]} 3... Bg7 {[%clk 0:02:57.7]}
4. d4 {[%clk 0:02:59.4]} 4... Nf6 {[%clk 0:02:58]} 5. O-O {[%clk 0:02:59.6]}
5... O-O {[%clk 0:02:58.6]} 6. c3 {[%clk 0:02:59.8]} 6... c6 {[%clk 0:02:50.9]}
7. Nbd2 {[%clk 0:02:57.5]} 7... Bf5 {[%clk 0:02:46.7]} 8. Nh4 {[%clk 0:02:57.1]}
8... Bg4 {[%clk 0:02:46.8]} 9. Re1 {[%clk 0:02:29.9]} 9... Nbd7 {[%clk
0:02:42.6]} 10. Qb3 {[%clk 0:02:14.6]} 10... Qb6 {[%clk 0:02:41.8]} 11. e4
{[%clk 0:02:14.3]} 11... dxe4 {[%clk 0:02:37.8]} 12. Nxe4 {[%clk 0:02:14.4]}
12... Nxe4 {[%clk 0:02:36.9]} 13. Rxe4 {[%clk 0:01:55.7]} 13... Be6 {[%clk
0:02:10.5]} 14. Rxe6 {[%clk 0:01:53.1]} 14... Qxb3 {[%clk 0:02:10.3]} 15. axb3
{[%clk 0:01:53.5]} 15... fxe6 {[%clk 0:02:10.8]} 16. Bh3 {[%clk 0:01:53.8]}
16... Kf7 {[%clk 0:02:01.3]} 17. Bd2 {[%clk 0:01:52.3]} 17... Rfd8 {[%clk
0:01:53.6]} 18. Nf3 {[%clk 0:01:44]} 18... h6 {[%clk 0:01:50.5]} 19. Re1 {[%clk
0:01:27.6]} 19... Nf8 {[%clk 0:01:50.6]} 20. Bf4 {[%clk 0:01:27.7]} 20... a5
{[%clk 0:01:50.3]} 21. Be5 {[%clk 0:00:58]} 21... Bf6 {[%clk 0:01:34.4]} 22. Ra1
{[%clk 0:00:41.5]} 22... g5 {[%clk 0:01:11.3]} 23. Bg4 {[%clk 0:00:39.2]} 23...
Nd7 {[%clk 0:01:11.5]} 24. Bh5+ {[%clk 0:00:21.2]} 24... Kg7 {[%clk 0:01:05.6]}
25. Bc7 {[%clk 0:00:12.3]} 25... Rdc8 {[%clk 0:01:03.9]} 26. Be5 {[%clk
0:00:12.4]} 26... Bxe5 {[%clk 0:00:59.3]} 27. dxe5 {[%clk 0:00:12.6]} 27... Nc5
{[%clk 0:00:59.5]} 28. Nd4 {[%clk 0:00:12.4]} 28... Rd8 {[%clk 0:00:57.2]} 29.
Bg4 {[%clk 0:00:11.3]} 29... Rxd4 {[%clk 0:00:47.5]} 30. cxd4 {[%clk 0:00:10.8]}
30... Nxb3 {[%clk 0:00:48.2]} 31. Rd1 {[%clk 0:00:07.9]} 31... Rd8 {[%clk
0:00:48.6]} 32. Bxe6 {[%clk 0:00:08]} 32... Nxd4 {[%clk 0:00:48.7]} 33. Bg4
{[%clk 0:00:08.6]} 33... Kg6 {[%clk 0:00:36.1]} 34. Rd3 {[%clk 0:00:07.8]} 34...
h5 {[%clk 0:00:33.1]} 35. Bd1 {[%clk 0:00:08]} 35... c5 {[%clk 0:00:33.8]} 36.
Re3 {[%clk 0:00:04.6]} 36... g4 {[%clk 0:00:28.2]} 37. Kf1 {[%clk 0:00:04.8]}
37... Kf5 {[%clk 0:00:27.8]} 38. Ke1 {[%clk 0:00:05.2]} 38... Rd5 {[%clk
0:00:25.7]} 39. Ra3 {[%clk 0:00:03.9]} 39... b6 {[%clk 0:00:23.4]} 40. Rc3
{[%clk 0:00:02.4]} 40... Rxe5+ {[%clk 0:00:19.4]} 41. Kd2 {[%clk 0:00:02.7]}
41... Rd5 {[%clk 0:00:19.4]} 42. Ke3 {[%clk 0:00:03.4]} 42... e5 {[%clk
0:00:18.2]} 43. Ba4 {[%clk 0:00:03.6]} 43... b5 {[%clk 0:00:14.4]} 44. Bd1
{[%clk 0:00:03.8]} 44... c4 {[%clk 0:00:14.5]} 45. Rc1 {[%clk 0:00:03.5]} 45...
a4 {[%clk 0:00:14.1]} 46. Rc3 {[%clk 0:00:02.5]} 46... Rd6 {[%clk 0:00:11.6]}
47. Rc1 {[%clk 0:00:02.5]} 47... Kf6 {[%clk 0:00:12]} 48. Rc3 {[%clk 0:00:02.6]}
48... Nf5+ {[%clk 0:00:11.9]} 49. Ke2 {[%clk 0:00:03]} 49... Nd4+ {[%clk
0:00:12.5]} 50. Ke3 {[%clk 0:00:03.5]} 50... Ne6 {[%clk 0:00:11.2]} 51. Bc2
{[%clk 0:00:03.6]} 51... Nc5 {[%clk 0:00:11.8]} 52. Bh7 {[%clk 0:00:03.4]} 52...
Rd7 {[%clk 0:00:11.2]} 53. Bc2 {[%clk 0:00:03]} 53... Rd6 {[%clk 0:00:11.6]} 54.
f3 {[%clk 0:00:03.4]} 54... Rd4 {[%clk 0:00:10.9]} 55. Bh7 {[%clk 0:00:02.3]}
55... b4 {[%clk 0:00:08]} 56. Rc1 {[%clk 0:00:02.6]} 56... gxf3 {[%clk
0:00:08.7]} 57. Kxf3 {[%clk 0:00:03.1]} 57... Nb3 {[%clk 0:00:08.1]} 58. Rc2
{[%clk 0:00:03.3]} 58... Ke6 {[%clk 0:00:05]} 59. Bg8+ {[%clk 0:00:02.5]} 59...
Kd6 {[%clk 0:00:05.6]} 60. Ke3 {[%clk 0:00:02.9]} 60... Kc5 {[%clk 0:00:05.9]}
61. Rf2 {[%clk 0:00:01.6]} 61... Rd1 {[%clk 0:00:03.8]} 62. Rf8 {[%clk
0:00:01.7]} 62... Re1+ {[%clk 0:00:04.1]} 63. Kf2 {[%clk 0:00:02.4]} 63... Rb1
{[%clk 0:00:04]} 64. Rc8+ {[%clk 0:00:03.1]} 64... Kd6 {[%clk 0:00:04.6]} 65.
Rd8+ {[%clk 0:00:03]} 65... Ke7 {[%clk 0:00:04.6]} 66. Rb8 {[%clk 0:00:03.7]}
66... Rxb2+ {[%clk 0:00:04.9]} 67. Ke3 {[%clk 0:00:04.2]} 67... Nd2 {[%clk
0:00:04.3]} 68. Rb7+ {[%clk 0:00:02.8]} 68... Kd6 {[%clk 0:00:04.5]} 69. Rb8
{[%clk 0:00:01.8]} 69... a3 {[%clk 0:00:04.7]} 70. Rd8+ {[%clk 0:00:02.2]} 70...
Ke7 {[%clk 0:00:04.8]} 71. Ra8 {[%clk 0:00:02.6]} 71... a2 {[%clk 0:00:04.9]}
72. Ra6 {[%clk 0:00:02.8]} 72... b3 {[%clk 0:00:04.8]} 73. Ra7+ {[%clk
0:00:01.5]} 73... Kd6 {[%clk 0:00:04.7]} 74. Ra6+ {[%clk 0:00:01.3]} 74... Kc5
{[%clk 0:00:04.8]} 75. Ra8 {[%clk 0:00:01.7]} 75... Rb1 {[%clk 0:00:04.6]} 76.
Rc8+ {[%clk 0:00:01.9]} 76... Kd6 {[%clk 0:00:05]} 77. Kxd2 {[%clk 0:00:01.3]}
77... a1=Q {[%clk 0:00:05.4]} 0-1